Cogmind - Beta 11.1 @@@ ROGUE MODE // 2022.05.28 @ 00:00:48 Player: Pogmind Result: Destroyed by as-29828 with Assembled Heavy Rifle Performance ------------- Evolutions (0) 0 Regions Visited (2) 400 Robots Destroyed (21) 105 Value Destroyed (447) 447 Prototype IDs (5) 100 Alien Tech Used (0) 0 Bonus (0) 0 TOTAL SCORE: 1052 Bonus ------- None Cogmind --------- Core Integrity 0/250 Matter 300/300 Energy 98/100 System Corruption 0% Temperature Cool (0) Movement Core (50) Location -10/Mines Parts ------- > --- POWER (1) -------- (None) > --- PROPULSION (2) --- (None) > --- UTILITY (2) ------ (None) > --- WEAPON (2) ------- (None) > --- INVENTORY (5) ---- Medium Storage Unit High-capacity Storage Unit Assault Rifle Autogun Improved Light Cannon Peak State ------------ > --- POWER ------------ (None) > --- PROPULSION ------- Light Treads Compact Wheel > --- UTILITY ---------- Huge Storage Unit Targeting Computer > --- WEAPON ----------- Shotgun Shotgun > --- INVENTORY -------- Heavy Ion Engine Flexi-carbon Leg Flexi-carbon Leg Improved Heat Sink Small Storage Unit Medium Storage Unit Large Storage Unit High-capacity Storage Unit Targeting Computer Armor Integrity Analyzer Hacking Suite Assault Rifle Autogun Autogun Autogun Autogun Shotgun Shotgun Light Cannon Improved Light Cannon Improved Light Cannon Improved Light Cannon Improved Light Cannon [Rating: 13] Favorites ----------- Power Ion Engine Engine Ion Engine Propulsion Light Treads Treads Light Treads Wheel Wheel Utility Huge Storage Unit Storage Huge Storage Unit Processor Targeting Computer Protection Light Armor Plating Weapon Assault Rifle Energy Gun Medium Laser Ballistic Gun Assault Rifle Ballistic Cannon Improved Light Cannon Build | -11 -10 -10 ------- Run | Scr Mat Min Slots Evolved . | . . . Power . | . . . Propulsion . | . . . Utility . | . . . Weapon . | . . . Parts Attached 26 | 6 15 5 Power 5 | 1 4 . Engine 5 | 1 4 . Core . | . . . Reactor . | . . . Propulsion 7 | 2 2 3 Treads 4 | 2 1 1 Leg . | . . . Wheel 3 | . 1 2 Hover . | . . . Flight . | . . . Utility 6 | 1 5 . Device . | . . . Storage 4 | 1 3 . Processor 1 | . 1 . Hackware . | . . . Protection 1 | . 1 . Artifact . | . . . Weapon 8 | 2 4 2 Energy Gun 2 | 1 1 . Energy Cannon . | . . . Ballistic Gun 5 | 1 2 2 Ballistic Cannon 1 | . 1 . Launcher . | . . . Special Weapon . | . . . Impact Weapon . | . . . Slashing Weapon . | . . . Piercing Weapon . | . . . Special Melee Weapon . | . . . Unidentified Prototypes 1 | . 1 . Parts Lost 8 | . 4 4 Power 2 | . 1 1 Propulsion 3 | . 2 1 Utility 1 | . 1 . Weapon 2 | . . 2 Highest Loss Streak 4 | . 2 4 To Critical Strikes 1 | . . 1 Average Slot Usage (%) 93 | . 92 93 Engine 8 | . 8 10 Treads 23 | . 25 9 Wheel 4 | . 2 17 Storage 13 | . 14 13 Processor 10 | . 9 13 Protection 2 | . 3 . Energy Gun 2 | . 2 . Ballistic Gun 25 | . 25 27 Naked Turns 17 | . . 17 Heaviest Build 93 | 12 93 89 Greatest Support 40 | 40 40 26 Greatest Overweight (x) 8 | . 8 8 Average Overweight (x) 3 | . 2 4 Largest Inventory Capacity 25 | 8 25 25 Average Capacity 24 | 7 24 24 Most Carried 25 | 4 24 25 Average Carried 19 | 2 19 22 Final Capacity 25 | 8 25 5 Final Carried 23 | 4 23 5 Class Distribution -------------------- 100% | Mutant Dominant Class ---------------- Mutant | -10/Materials Mutant | -10/Mines Resources | -11 -10 -10 ----------- Run | Scr Mat Min Matter Collected 826 | 250 461 115 Remotely . | . . . Salvage Created 714 | . 596 118 Parts 51 | . 48 3 Haulers Intercepted 1 | . 1 . Recyclers Shooed 2 | . 2 . Parts Field Recycled . | . . . Retrieved Matter . | . . . Parts Self-Destructed . | . . . Prevented . | . . . Kills | -11 -10 -10 ------- Run | Scr Mat Min Combat Hostiles Destroyed 18 | . 12 6 Guns 18 | . 12 6 Classes Destroyed 10 | . 8 2 Worker 1 | . 1 . Builder 1 | . 1 . Tunneler 1 | . 1 . Hauler 1 | . 1 . Recycler 1 | . . 1 Operator 1 | . 1 . Watcher 3 | . 3 . Swarmer 3 | . 3 . Grunt 9 | . 9 . Assembled 6 | . . 6 Best Kill Streak 4 | . 3 4 Combat Bots Only 4 | . 3 4 Max Kills in Single Turn 2 | . 1 2 Gunslinging 1 | . . 1 Exploded . | . . . Melee . | . . . Uniques/NPCs Destroyed . | . . . Combat | -11 -10 -10 -------- Run | Scr Mat Min Damage Taken 1319 | . 819 500 Core 258 | . 157 101 Absorbed by Shields . | . . . Core Remaining (%) 100 | 100 . . Volleys Fired 79 | . 68 11 Largest 2 | . 2 2 Hottest 85 | . 85 46 Shots Fired 158 | . 136 22 Gun 158 | . 136 22 Cannon . | . . . Launcher . | . . . Special . | . . . Kinetic 132 | . 110 22 Thermal 26 | . 26 . Explosive . | . . . Electromagnetic . | . . . Robot Hit Streak 13 | . 13 5 Robot Miss Streak 5 | . 5 3 Penetration Max . | . . . Secondary Targets 5 | . 2 3 Max Gunslinging Chain 1 | . 1 1 Shots Hit Robots 109 | . 93 16 Core Hits 49 | . 35 14 Critical Kills 1 | . . 1 Critical Parts Destroyed 1 | . 1 . Critical Strikes 3 | . 2 1 Burn 1 | . 1 . Destroy 2 | . 1 1 Melee Attacks . | . . . Impact . | . . . Slashing . | . . . Piercing . | . . . Sneak Attacks . | . . . Combat Hostiles . | . . . Follow-up Attacks . | . . . Damage Inflicted 1464 | . 1224 240 Guns 1410 | . 1170 240 Cannons . | . . . Explosions . | . . . Melee . | . . . Ramming 54 | . 54 . Kinetic 1205 | . 965 240 Thermal 205 | . 205 . Explosive . | . . . Electromagnetic . | . . . Impact . | . . . Slashing . | . . . Piercing . | . . . Highest Corruption . | . . . Average Corruption . | . . . Corruption Purged . | . . . Corruption Blocked . | . . . Overload Shots . | . . . Overflow Damage . | . . . Projectiles . | . . . Explosions . | . . . Melee . | . . . Knockbacks . | . . . Impact . | . . . Kinetic . | . . . Secondary . | . . . Self-Inflicted Damage . | . . . Shots . | . . . Rammed 7 | . 7 . Targets Rammed 8 | . 8 . Kicked . | . . . Crushed 1 | . 1 . Highest Temperature 198 | . 198 10 Average Temperature 79 | . 81 10 Received Heat Transfer 382 | . 342 40 Siege Activations . | . . . Robots Corrupted . | . . . Combat Hostiles . | . . . Parts Fried . | . . . Impact Corruptions . | . . . Robots Melted . | . . . Combat Hostiles . | . . . Parts Melted . | . . . Heat Transferred 629 | . 629 . Parts Sabotaged . | . . . Parts Stolen . | . . . Parts Stripped . | . . . Power Chain Reactions . | . . . Missiles Intercepted . | . . . Alert | -11 -10 -10 ------- Run | Scr Mat Min Peak Influence 149 | . 149 20 Initial . | . . . Average 33 | . 38 2 Maximum Alert Level . | . . . Low Security (%) 100 | 100 100 100 Level 1 . | . . . Level 2 . | . . . Level 3 . | . . . Level 4 . | . . . Level 5 . | . . . High Security . | . . . Max Security . | . . . Squads Dispatched 4 | . 4 . Investigation 3 | . 3 . Extermination . | . . . Reinforcement 1 | . 1 . Assault . | . . . Garrison . | . . . Intercept . | . . . Searches Triggered . | . . . Construction Impeded . | . . . Haulers Reinforced . | . . . Active Scanning Responses . | . . . Cargo Convoy Interrupts . | . . . Stealth | -11 -10 -10 --------- Run | Scr Mat Min Distress Signals 1 | . 1 . Communications Jammed . | . . . Distress Signals . | . . . Times Spotted 44 | . 28 16 Peak Tracking Total 5 | . 3 5 Tactical Retreats 5 | . 5 . Traps | -11 -10 -10 ------- Run | Scr Mat Min Traps Triggered 1 | . 1 . Indirectly . | . . . Trap Hack Attempts . | . . . Triggered . | . . . Disarmed . | . . . Reprogrammed . | . . . Reused . | . . . Traps Extracted . | . . . Installed . | . . . Triggered . | . . . Machines | -11 -10 -10 ---------- Run | Scr Mat Min Machines Disabled . | . . . Max in Single Turn . | . . . Machines Sabotaged . | . . . Garrisons Compromised . | . . . Overloaded Fab Kills . | . . . Hacking | -11 -10 -10 --------- Run | Scr Mat Min Machines Accessed 9 | . 9 . Terminals 7 | . 7 . Fabricators . | . . . Repair Stations . | . . . Recycling Units 2 | . 2 . Scanalyzers . | . . . Garrison Access . | . . . Total Hacks 25 | . 25 . Successful 17 | . 17 . Failed 7 | . 7 . Catastrophic . | . . . Database Lockouts 1 | . 1 . Manual 22 | . 22 . Terminals 23 | . 23 . Fabricators . | . . . Repair Stations . | . . . Recycling Units 2 | . 2 . Scanalyzers . | . . . Garrison Access . | . . . Terminal Hacks 10 | . 10 . Robot Analysis 2 | . 2 . Prototype ID Bank 2 | . 2 . Terminal Index 1 | . 1 . Locate Traps 3 | . 3 . Recall Investigation 1 | . 1 . Hauler Manifests 1 | . 1 . Fabricator Hacks . | . . . Repair Station Hacks . | . . . Recycling Unit Hacks . | . . . Scanalyzer . | . . . Garrison Access Hacks . | . . . Unauthorized Hacks 7 | . 7 . Terminals 5 | . 5 . Assimilate 1 | . 1 . Botnet 3 | . 3 . Operators 1 | . 1 . Fabricators . | . . . Repair Stations . | . . . Recycling Units 2 | . 2 . Tunnel 2 | . 2 . Scanalyzers . | . . . Garrison Access . | . . . Data Cores Recovered . | . . . Used . | . . . Hacking Detections 6 | . 6 . Full Trace Events . | . . . Feedback Events . | . . . Feedback Blocked . | . . . Robot Schematics Acquired . | . . . Robots Built . | . . . Authchips . | . . . Time . | . . . Total Robot Build Rating . | . . . Part Schematics Acquired . | . . . Parts Built . | . . . Authchips . | . . . Time . | . . . Total Part Build Rating . | . . . Parts Repaired . | . . . Time . | . . . Parts Recycled . | . . . Recycled Matter . | . . . Retrieved Matter . | . . . Retrieved Components . | . . . Parts Scanalyzed . | . . . Part Schematics Acquired . | . . . Parts Damaged . | . . . Bothacking | -11 -10 -10 ------------ Run | Scr Mat Min Used RIF Installer . | . . . Robots Hacked . | . . . Non-combat . | . . . Combat . | . . . Robot Hacks Applied . | . . . Relay Couplers Released . | . . . Fabnet Peak Effective % . | . . . Robots Rewired . | . . . Allies Hacked . | . . . Hacks Repelled . | . . . Allies | -11 -10 -10 -------- Run | Scr Mat Min Total Allies 1 | . . 1 Largest Group 1 | . . 1 Highest-Rated Group 31 | . . 31 Highest-Rated Ally 31 | . . 31 Total Orders . | . . . Ally Attacks 9 | . . 9 Total Damage 166 | . . 166 Kills 5 | . . 5 Allies Corrupted . | . . . Allies Melted . | . . . Intel | -11 -10 -10 ------- Run | Scr Mat Min Robot Analysis Total 2 | . 2 . Derelict Logs Recovered . | . . . Drone Launches . | . . . Drone Recoveries . | . . . Exploration | -11 -10 -10 ------------- Run | Scr Mat Min Turns Passed 3728 | 83 3207 438 Spaces Moved 1162 | 47 863 252 Core 38 | 4 . 34 Treads 753 | 43 710 . Legs . | . . . Wheels 371 | . 153 218 Hover . | . . . Flight . | . . . Fastest Speed 50 | 50 160 50 Average Speed 250 | 150 283 152 Slowest Speed 320 | 160 320 200 Overloaded Moves . | . . . Propulsion Burnouts . | . . . Robots Hopped . | . . . Cave-ins Triggered . | . . . Exploration Rate (%) 48 | 5 99 41 Regions Visited 2 Branch Regions 1 Pre-discovered Areas 2 | . 2 . Known Exits Taken . | . . . Unknown Exits Taken 2 | 1 1 . Scrap Searched 1 | . . 1 Spaces Dug . | . . . Terrain Destroyed . | . . . Melee . | . . . Projectile . | . . . AOE . | . . . Terrain Rammed . | . . . Walls Destroyed . | . . . Machines Disabled . | . . . Actions | -11 -10 -10 --------- Run | Scr Mat Min Total 1805 | 56 1466 283 Wait 492 | . 481 11 Move 1160 | 46 862 252 Hop . | . . . Pick Up 31 | 4 23 4 Fast Attach 10 | 6 4 . Attach 8 | . 4 4 Detach 3 | . 3 . Swap 8 | . 7 1 Drop 6 | . 6 . Fire 79 | . 68 11 Melee . | . . . Ram . | . . . Kick . | . . . Crush 8 | . 8 . Escape Stasis . | . . . Rewire . | . . . Trap . | . . . Miscellaneous . | . . . Route ------- -11/Scrapyard -10/Materials (discovered 4 exits: [*Mat x3] / [*Min]) -10/Mines (discovered 1 exit: [*Mat]) History --------- Turn | Location | Event 8 | -11/Scrapyard | Discovered new exit (range 15) 84 | -11/Scrapyard | Entered Materials 133 | -10/Materials | Central database locked down 302 | -10/Materials | Build established: Mutant 927 | -10/Materials | Discovered new exit (range 14) 1062 | -10/Materials | Discovered new exit (range 11) 2237 | -10/Materials | Discovered new exit (range 3) 2695 | -10/Materials | Core integrity fell below 50% 2730 | -10/Materials | Discovered new exit (range 5) 3291 | -10/Materials | Entered Mines 3292 | -10/Mines | Met a Derelict bent on vengeance 3294 | -10/Mines | Received a Mining Laser from a helpful Derelict 3361 | -10/Mines | Discovered new exit (range 12) 3451 | -10/Mines | Assembled infested the area 3456 | -10/Mines | Assisted by a Guerilla fighting off Assembled 3613 | -10/Mines | Core integrity fell below 20% 3641 | -10/Mines | Lost 4 parts (1p1n2w) 3712 | -10/Mines | Released all parts (6) 3729 | -10/Mines | Destroyed by as-29828 with Assembled Heavy Rifle Last Messages --------------- 03626_ Switching to secondary target: as-20752. 03629_ as-20752 destroyed. 03632_ Acquired 7 matter. 03635_ Acquired 12 matter. 03662_ as-95949 sneak attacks. 03662_ K-01 Serf destroyed. 03666_ as-95949 destroyed. 03666_ Switching to secondary target: as-42212. 03669_ as-42212 destroyed. 03682_ Acquired 14 matter. 03686_ Acquired 25 matter. 03689_ Acquired 29 matter. 03693_ Acquired Flexi-carbon Leg. 03707_ Acquired 12 matter. 03712_ Released Shotgun. 03712_ Released Com. Wheel. 03712_ Released Targeting Computer. 03712_ Released Huge Storage Unit. 03712_ Released Lgt. Treads. 03716_ K-01 Serf collects debris. Map ----- +----------------------------------------------------+ | ?????????????????????????????????????????????????? | | ?????????????????????????????????????????????????? | | ?????????????????????????????????????????????????? | | ?????????????????????????????????????????????????? | | ?????????????????????????????????????????????????? | | ?????????????????????????????????????????????????? | | ?????????????????????????????????????????????????? | | ?????????????????????????????????????????????????? | | ?????????????????????????????????????????????????? | | ?????????????????????????????????????????????????? | | ???????????????????????????????????????##????????? | | ???????????????????????????????????????? ####???? | | ????????????????????????????????????????# #???? | | ????????????????????????????????????????# ## #???? | | ???????????????????????????????????????????# #???? | | ???????????????????????????????????????????# #???? | | ???????????????????????????????????????????# #???? | | ???????????????????????????????????????????# #???? | | ????????????????????????###????????????????# #???? | | ????????????????????????* #????????????????# #???? | | ????????????????????????# #???#####????????# ####? | | ????????????????????????#%#???# ##???????# #? | | ????????????????????????# #???# ####????#### #? | | ????????????????????????#=#???# ##??????# #? | | ??????????????????????###=####### #??????# ## | | ??????????????????????# %@* #??## ######## ## | | ??????????????????????# |%* #???# =%= | | ?????????????????????## ## #####% = % *% | | ????????????????????##% ## % ######### | | ????????????????????# ! " ##??????#] | | ????????????????????# ################??????# | | ???????????????????# #?????????????????????## | | ??????????????????# #??????????????????????# | | ?????????????????# !%|#??????????????????????## | | ????????????????# ## ???????????????????????# | | ????????????????# a#?##= ???????????????????????? | | ???????????????# | ???#%! ??????????????????????? | | ???????????????#!%???? ????????????????###???? | | ???????????????# ????? ##?????????????## ##??? | | ???????????##?? ????? ####?????????????# #??? | | ???????????# ??????#???????????????## < #??? | | ???????????# ?????????????????????### #??? | | ????????????# ????????????????????## #### | | ?????????????# ??????????????????## ### | | ??????????????# ?????????????????# ### | | ??????????????# #####????????????# #?# | | ??????????????# #?????????????# #??# | | ??????????????# ############??# #???# | | ??????????????????# #??# ##??## # | | ??????????????????# ########## #### ##??###? | +----------------------------------------------------+ Best States ------------- Heat Dissipation 25 Energy Generation 10 Energy Capacity 250 Matter Stores 300 Matter Capacity 300 Sight Range 16 Terrain Scan Density 10 Armor Coverage 150 Evasion (%) 50 Targeting Accuracy 5 Recoil Reduction 2 Item Schematics ----------------- None Robot Schematics ------------------ None Fabricated ------------ Nothing Alien Tech Used ----------------- None Achievements -------------- None Challenges ------------ None Game ------ Seed BiometalSuspensionBlaster Manual? 0 Play Time 00:18:25 Cumulative 441.0 hours Start 2022.05.27 @ 23:44:53 End 2022.05.28 @ 00:00:48 Sessions 1 Manual Loads 0 Difficulty Rogue Special Mode None Game No. 36 Rogue 31 Adventurer 5 Explorer 0 Win Type - Total 19 Types 5/4/3/0/3/1/2/0/1 Lore% 78 Gallery% 88 Achievement% 80 Wizard Run 0 Options --------- ASCII 0 Keyboard 1 Movement Arrows Keybinds 0 Fullscreen 2 Font 18/SmallcapsGlow Map View 76x50 Tactical HUD 1 Map Filters NONE Filters NONE Steam 1 RUN: 3ed169a3-493f-4469-8634-935a21c3e78a